fUSD/lending_fUSD_20250502
["ID","MTS","AMOUNT","RATE_DAILY","PERIOD"]
[359596806,1746175839992,-589.62507924,0.00019821,2]
[359596809,1746175840001,-158.12635643,0.00019821,2]
[359596812,1746175840011,-500.0,0.00019821,2]
[359596815,1746175840020,-713.57,0.00019821,2]
[359596817,1746175840030,-450.0,0.00019821,2]
[359596820,1746175840040,-177.18309793,0.00019821,2]
[359596823,1746175840049,-507.28838955,0.00019821,2]
[359596826,1746175840058,-575.62187852,0.00019821,2]
[359596829,1746175840068,-502.12352298,0.00019821,2]
[359596832,1746175840077,-612.57,0.00019821,2]
[359596834,1746175840087,-500.0,0.00019821,2]
[359596837,1746175840096,-690.85,0.00019821,2]
[359596840,1746175840106,-450.0,0.00019821,2]
[359596843,1746175840116,-572.95358373,0.00019821,2]
[359596846,1746175840126,-514.05720528,0.00019821,2]
[359596849,1746175840135,-670.39,0.00019821,2]
[359596852,1746175840144,-502.86085126,0.00019821,2]
[359596855,1746175840153,-738.64,0.00019821,2]
[359596858,1746175840162,-450.0,0.00019821,2]
[359596861,1746175840172,-578.31,0.00019821,2]
[359596864,1746175840181,-450.0,0.00019821,2]
[359596867,1746175840190,-524.46,0.00019821,2]
[359596870,1746175840200,-775.45,0.00019821,2]
[359596873,1746175840209,-488.92,0.00019821,2]
[359596876,1746175840218,-697.24,0.00019821,2]
[359596879,1746175840227,-450.0,0.00019821,2]
[359596882,1746175840236,-450.0,0.00019821,2]
[359596884,1746175840245,-767.71,0.00019821,2]
[359596886,1746175840254,-450.0,0.00019821,2]
[359596889,1746175840263,-450.0,0.00019821,2]
[359596892,1746175840272,-450.0,0.00019821,2]
[359596895,1746175840282,-450.0,0.00019821,2]
[359596898,1746175840291,-2319.22,0.00019821,2]
[359596901,1746175840300,-658.97,0.00019821,2]
[359596903,1746175840309,-450.0,0.00019821,2]
[359596906,1746175840319,-1753.08,0.00019821,2]
[359596910,1746175840329,-450.0,0.00019821,2]
[359596912,1746175840338,-1143.01,0.00019821,2]
[359596915,1746175840347,-450.0,0.00019821,2]
[359596918,1746175840357,-417.81953659,0.00019821,2]
[359596921,1746175840366,-450.0,0.00019821,2]
[359596924,1746175840376,-450.0,0.00019821,2]
[359596926,1746175840385,-1009.86,0.00019821,2]
[359596929,1746175840394,-657.81,0.00019821,2]
[359596932,1746175840404,-450.0,0.00019821,2]
[359596935,1746175840414,-450.0,0.00019821,2]
[359596938,1746175840423,-450.0,0.00019821,2]
[359596941,1746175840433,-1010.43,0.00019821,2]
[359596943,1746175840442,-450.0,0.00019821,2]
[359596945,1746175840452,-450.0,0.00019821,2]
[359596947,1746175840461,-924.1,0.00019821,2]
[359596949,1746175840471,-450.0,0.00019821,2]
[359596952,1746175840480,-450.0,0.00019821,2]
[359596955,1746175840489,-936.01,0.00019821,2]
[359596958,1746175840500,-450.0,0.00019821,2]
[359596961,1746175840509,-1045.37,0.00019821,2]
[359596964,1746175840518,-781.72,0.00019821,2]
[359596967,1746175840528,-487.94,0.00019821,2]
[359596970,1746175840539,-450.0,0.00019821,2]
[359596973,1746175840549,-450.0,0.00019821,2]
[359596976,1746175840560,-450.0,0.00019821,2]
[359596979,1746175840570,-564.8,0.00019821,2]
[359596982,1746175840579,-569.54,0.00019821,2]
[359596985,1746175840589,-450.0,0.00019821,2]
[359596987,1746175840598,-450.0,0.00019821,2]
[359596988,1746175840607,-735.81,0.00019821,2]
[359596990,1746175840616,-522.4,0.00019821,2]
[359596992,1746175840626,-859.03,0.00019821,2]
[359596994,1746175840635,-450.0,0.00019821,2]
[359596996,1746175840643,-1390.59,0.00019821,2]
[359596998,1746175840653,-450.0,0.00019821,2]
[359597000,1746175840662,-450.0,0.00019821,2]
[359597002,1746175840671,-761.47,0.00019821,2]
[359597004,1746175840680,-635.84,0.00019821,2]
[359597006,1746175840689,-929.52,0.00019821,2]
[359597007,1746175840699,-450.0,0.00019821,2]
[359597009,1746175840707,-761.11,0.00019821,2]
[359597011,1746175840716,-450.0,0.00019821,2]
[359597013,1746175840725,-763.56,0.00019821,2]
[359597015,1746175840734,-450.0,0.00019821,2]
[359597017,1746175840743,-450.0,0.00019821,2]
[359597019,1746175840752,-450.0,0.00019821,2]
[359597021,1746175840761,-450.0,0.00019821,2]
[359597023,1746175840770,-450.0,0.00019821,2]
[359597025,1746175840779,-450.0,0.00019821,2]
[359597027,1746175840788,-644.28,0.00019821,2]
[359597028,1746175840797,-211.11976776,0.00019821,2]
[359597031,1746175840808,-509.82,0.00019821,2]
[359597034,1746175840817,-450.0,0.00019821,2]
[359597037,1746175840826,-910.91,0.00019821,2]
[359597040,1746175840836,-450.0,0.00019821,2]
[359597043,1746175840846,-958.92,0.00019821,2]
[359597046,1746175840855,-239411.95,0.00019821,2]
[359597049,1746175840864,-450.0,0.00019821,2]
[359597051,1746175840873,-1161.28,0.00019821,2]
[359597054,1746175840883,-450.0,0.00019822,2]
[359597056,1746175840893,-788.68,0.00019822,2]
[359597059,1746175840902,-450.0,0.00019822,2]
[359597062,1746175840911,-450.0,0.00019822,2]
[359597065,1746175840921,-450.32,0.00019822,2]
[359597068,1746175840930,-3872.1,0.00019822,2]
[359597071,1746175840940,-450.0,0.00019822,2]
[359597075,1746175840949,-450.0,0.00019822,2]
[359597077,1746175840959,-450.0,0.00019822,2]
[359597078,1746175840969,-1631.22,0.00019822,2]
[359597080,1746175840978,-450.0,0.00019822,2]
[359597082,1746175840988,-755.21,0.00019822,2]
[359597084,1746175840997,-12063.98,0.00019822,2]
[359597086,1746175841007,-744.96,0.00019822,2]
[359597089,1746175841017,-450.0,0.00019822,2]
[359597091,1746175841027,-516.81,0.00019822,2]
[359597092,1746175841039,-894.09,0.00019822,2]
[359597095,1746175841049,-615.32,0.00019822,2]
[359597097,1746175841059,-450.0,0.00019822,2]
[359597099,1746175841069,-1008.23,0.00019822,2]
[359597101,1746175841078,-1331.27,0.00019822,2]
[359597103,1746175841088,-1075.65,0.00019822,2]
[359597105,1746175841097,-4112.53,0.00019822,2]
[359597107,1746175841106,-2556.72,0.00019822,2]
[359597108,1746175841116,-591.53,0.00019822,2]
[359597111,1746175841127,-450.0,0.00019822,2]
[359597112,1746175841138,-596.83,0.00019822,2]
[359597115,1746175841148,-450.0,0.00019822,2]
[359597116,1746175841158,-670.73,0.00019822,2]
[359597119,1746175841167,-1015.25,0.00019822,2]
[359597120,1746175841177,-450.0,0.00019822,2]
[359597123,1746175841186,-3185.43,0.00019822,2]
[359597125,1746175841198,-820.27,0.00019822,2]
[359597127,1746175841208,-1284.78,0.00019822,2]
[359597128,1746175841219,-368.23329625,0.00019822,2]
[359597131,1746175841230,-1186.0,0.00019822,2]
[359597133,1746175841239,-978.73,0.00019822,2]
[359597135,1746175841249,-594.81,0.00019822,2]
[359597137,1746175841258,-6762.58,0.00019822,2]
[359597139,1746175841268,-3722.2,0.00019822,2]
[359597141,1746175841278,-1210.15,0.00019822,2]
[359597143,1746175841287,-1210.15,0.00019822,2]
[359597145,1746175841296,-2786.08,0.00019822,2]
[359597147,1746175841305,-1210.15,0.00019822,2]
[359597149,1746175841316,-1210.15,0.00019822,2]
[359597151,1746175841325,-1059.94,0.00019822,2]
[359597153,1746175841335,-500.0,0.00019822,2]
[359597154,1746175841344,-1352.68,0.00019822,2]
[359597157,1746175841354,-1076.96,0.00019822,2]
[359597159,1746175841363,-1517.13,0.00019822,2]
[359597161,1746175841373,-938.99,0.00019822,2]
[359597163,1746175841382,-450.0,0.00019822,2]
[359597165,1746175841392,-631.04,0.00019822,2]
[359597167,1746175841401,-1634.19,0.00019822,2]
[359597169,1746175841410,-930.91,0.00019822,2]
[359597171,1746175841419,-450.0,0.00019822,2]
[359597173,1746175841429,-1708.07,0.00019822,2]
[359597175,1746175841438,-450.0,0.00019822,2]
[359597177,1746175841447,-450.0,0.00019822,2]
[359597179,1746175841456,-830.27,0.00019822,2]
[359597181,1746175841466,-450.0,0.00019822,2]
[359597183,1746175841475,-8012.11,0.00019822,2]
[359597185,1746175841484,-450.0,0.00019822,2]
[359597187,1746175841493,-1537.26,0.00019822,2]
[359597189,1746175841502,-743.99,0.00019822,2]
[359597191,1746175841511,-258.872243,0.00019822,2]
[359597193,1746175841521,-8936.48,0.00019822,2]
[359597195,1746175841530,-450.0,0.00019822,2]
[359597197,1746175841540,-151.0,0.00019822,2]
[359597199,1746175841550,-450.0,0.00019822,2]
[359597201,1746175841559,-9020.63,0.00019822,2]
[359597203,1746175841569,-745.89,0.00019822,2]
[359597205,1746175841579,-450.0,0.00019823,2]
[359597207,1746175841589,-450.0,0.00019823,2]
[359597209,1746175841598,-625.5,0.00019823,2]
[359597211,1746175841608,-450.0,0.00019823,2]
[359597213,1746175841617,-255.88549319,0.00019823,2]
[359597215,1746175841627,-446.35235035,0.00019823,2]
[359597217,1746175841636,-450.0,0.00019823,2]
[359597218,1746175841645,-487.11,0.00019823,2]
[359597221,1746175841654,-694.28,0.00019823,2]
[359597222,1746175841663,-970.77,0.00019823,2]
[359597225,1746175841673,-450.0,0.00019823,2]
[359597227,1746175841682,-450.0,0.00019823,2]
[359597229,1746175841692,-404.19177593,0.00019823,2]
[359597231,1746175841701,-515.86,0.00019823,2]
[359597233,1746175841710,-450.0,0.00019823,2]
[359597235,1746175841720,-1000.0,0.00019823,2]
[359597236,1746175841729,-450.0,0.00019823,2]
[359597239,1746175841739,-450.0,0.00019823,2]
[359597240,1746175841748,-772.57,0.00019823,2]
[359597243,1746175841758,-420.55718536,0.00019823,2]
[359597245,1746175841768,-450.0,0.00019823,2]
[359597246,1746175841779,-450.0,0.00019823,2]
[359597249,1746175841789,-450.0,0.00019823,2]
[359597251,1746175841798,-450.0,0.00019823,2]
[359597252,1746175841808,-450.0,0.00019823,2]
[359597255,1746175841818,-570.54994001,0.00019823,2]
[359597257,1746175841828,-450.0,0.00019823,2]
[359597259,1746175841837,-450.0,0.00019823,2]
[359597261,1746175841847,-450.0,0.00019823,2]
[359597263,1746175841857,-777.45,0.00019823,2]
[359597265,1746175841866,-450.0,0.00019823,2]
[359597267,1746175841876,-153.72743015,0.00019823,2]
[359597269,1746175841885,-450.0,0.00019823,2]
[359597271,1746175841895,-450.0,0.00019823,2]
[359597273,1746175841904,-450.0,0.00019823,2]
[359597275,1746175841913,-450.0,0.00019823,2]
[359597277,1746175841923,-450.0,0.00019823,2]
[359597279,1746175841932,-450.0,0.00019823,2]
[359597281,1746175841942,-450.0,0.00019823,2]
[359597283,1746175841951,-450.0,0.00019823,2]
[359597285,1746175841960,-573.95,0.00019823,2]
[359597287,1746175841970,-450.0,0.00019823,2]
[359597290,1746175841983,-450.0,0.00019823,2]
[359597292,1746175841992,-428.85523287,0.00019823,2]
[359597315,1746175842205,-450.0,0.00019823,2]
[359597317,1746175842215,-624.02,0.00019823,2]
[359597319,1746175842225,-450.0,0.00019823,2]
[359597321,1746175842235,-407.93456847,0.00019823,2]
[359597323,1746175842246,-450.0,0.00019823,2]
[359597325,1746175842256,-450.0,0.00019823,2]
[359597326,1746175842266,-450.0,0.00019823,2]
[359597328,1746175842275,-450.0,0.00019823,2]
[359597330,1746175842285,-545.37074851,0.00019823,2]
[359597332,1746175842294,-1065.67,0.00019823,2]
[359597335,1746175842304,-450.0,0.00019823,2]
[359597336,1746175842313,-450.0,0.00019823,2]
[359597338,1746175842322,-383.8601003,0.00019823,2]
[359597341,1746175842331,-450.0,0.00019823,2]
[359597343,1746175842342,-450.0,0.00019823,2]
[359597345,1746175842352,-450.0,0.00019823,2]
[359597348,1746175842363,-569.35,0.00019823,2]
[359597350,1746175842373,-450.0,0.00019823,2]
[359597353,1746175842382,-450.0,0.00019823,2]
[359597355,1746175842392,-450.0,0.00019823,2]
[359597357,1746175842402,-450.0,0.00019823,2]
[359597359,1746175842411,-456.06,0.00019823,2]
[359597361,1746175842422,-450.0,0.00019823,2]
[359597363,1746175842431,-450.0,0.00019823,2]
[359597365,1746175842440,-450.0,0.00019823,2]
[359597367,1746175842449,-450.0,0.00019823,2]
[359597369,1746175842459,-450.0,0.00019823,2]
[359597371,1746175842468,-567.95,0.00019823,2]
[359597373,1746175842478,-450.0,0.00019823,2]
[359597375,1746175842487,-450.0,0.00019823,2]
[359597377,1746175842497,-450.0,0.00019823,2]
[359597379,1746175842507,-1369.34,0.00019823,2]
[359597381,1746175842517,-537.91155507,0.00019823,2]
[359597383,1746175842527,-450.0,0.00019823,2]
[359597385,1746175842536,-450.0,0.00019823,2]
[359597387,1746175842545,-450.0,0.00019823,2]
[359597388,1746175842555,-539.36,0.00019823,2]
[359597390,1746175842566,-500.0,0.00019823,2]
[359597392,1746175842576,-500.0,0.00019823,2]
[359597394,1746175842585,-518.48,0.00019823,2]
[359597396,1746175842596,-500.0,0.00019823,2]
[359597398,1746175842606,-500.0,0.00019823,2]
[359597400,1746175842615,-530.70042877,0.00019823,2]
[359597402,1746175842625,-450.0,0.00019823,2]
[359597404,1746175842635,-767.04,0.00019823,2]
[359597406,1746175842646,-450.0,0.00019823,2]
[359597409,1746175842656,-450.0,0.00019823,2]
[359597411,1746175842666,-475.68788128,0.00019823,2]
[359597413,1746175842676,-1817.41,0.00019823,2]
[359597415,1746175842686,-526.44810028,0.00019823,2]
[359597417,1746175842696,-450.0,0.00019823,2]
[359597419,1746175842705,-450.0,0.00019823,2]
[359597421,1746175842715,-450.0,0.00019823,2]
[359597423,1746175842725,-450.0,0.00019823,2]
[359597425,1746175842734,-532.63,0.00019823,2]
[359597427,1746175842743,-450.0,0.00019823,2]
[359597429,1746175842752,-931.26,0.00019823,2]
[359597431,1746175842762,-450.0,0.00019823,2]
[359597433,1746175842771,-450.0,0.00019823,2]
[359597435,1746175842781,-450.0,0.00019823,2]
[359597437,1746175842790,-559.56,0.00019823,2]
[359597439,1746175842800,-450.0,0.00019823,2]
[359597441,1746175842810,-450.0,0.00019823,2]
[359597443,1746175842821,-450.0,0.00019823,2]
[359597445,1746175842831,-450.0,0.00019823,2]
[359597447,1746175842841,-450.0,0.00019823,2]
[359597449,1746175842850,-151.0,0.00019823,2]
[359597451,1746175842861,-986.45,0.00019823,2]
[359597453,1746175842871,-863.32,0.00019823,2]
[359597455,1746175842880,-450.0,0.00019823,2]
[359597457,1746175842890,-761.46,0.00019823,2]
[359597459,1746175842900,-450.0,0.00019823,2]
[359597461,1746175842909,-450.0,0.00019823,2]
[359597463,1746175842918,-450.0,0.00019823,2]
[359597465,1746175842928,-450.0,0.00019823,2]
[359597467,1746175842937,-450.0,0.00019823,2]
[359597469,1746175842947,-719.18,0.00019823,2]
[359597471,1746175842956,-450.0,0.00019823,2]
[359597473,1746175842965,-525.39989279,0.00019823,2]
[359597475,1746175842975,-564.58294053,0.00019823,2]
[359597477,1746175842986,-719.9,0.00019823,2]
[359597480,1746175842995,-534.56,0.00019823,2]
[359597483,1746175843005,-499.08,0.00019823,2]
[359597487,1746175843015,-450.0,0.00019823,2]
[359597490,1746175843024,-860.92,0.00019823,2]
[359597493,1746175843039,-450.0,0.00019823,2]
[359597495,1746175843048,-500.0,0.00019823,2]
[359597497,1746175843058,-500.0,0.00019823,2]
[359597499,1746175843067,-449.73983441,0.00019823,2]
[359597501,1746175843078,-450.0,0.00019823,2]
[359597503,1746175843087,-450.0,0.00019823,2]
[359597505,1746175843096,-450.0,0.00019823,2]
[359597507,1746175843106,-473.73,0.00019823,2]
[359597509,1746175843115,-450.0,0.00019823,2]
[359597511,1746175843124,-545.67,0.00019823,2]
[359597513,1746175843133,-450.0,0.00019823,2]
[359597515,1746175843143,-574.83,0.00019823,2]
[359597517,1746175843152,-450.0,0.00019823,2]
[359597519,1746175843161,-450.0,0.00019823,2]
[359597521,1746175843170,-909.43,0.00019823,2]
[359597523,1746175843179,-450.0,0.00019823,2]
[359597525,1746175843189,-151.0,0.00019823,2]
[359597527,1746175843199,-479.10774645,0.00019823,2]
[359597529,1746175843208,-479.21627206,0.00019823,2]
[359597531,1746175843218,-151.0,0.00019823,2]
[359597533,1746175843227,-450.0,0.00019823,2]
[359597535,1746175843236,-165.49028905,0.00019823,2]
[359597537,1746175843246,-450.0,0.00019823,2]
[359597539,1746175843256,-479.20537631,0.00019823,2]
[359597541,1746175843266,-980.52,0.00019823,2]
[359597543,1746175843275,-450.0,0.00019823,2]
[359597545,1746175843285,-483.42226741,0.00019823,2]
[359597547,1746175843294,-450.0,0.00019823,2]
[359597549,1746175843303,-450.0,0.00019823,2]
[359597551,1746175843313,-450.0,0.00019823,2]
[359597553,1746175843322,-197.826857,0.00019823,2]
[359597555,1746175843332,-151.0,0.00019823,2]
[359597557,1746175843341,-2052.81,0.00019823,2]
[359597559,1746175843351,-539.71,0.00019823,2]
[359597561,1746175843361,-197.826857,0.00019823,2]
[359597563,1746175843371,-1886.92,0.00019823,2]
[359597565,1746175843380,-736.94,0.00019823,2]
[359597567,1746175843390,-450.0,0.00019823,2]
[359597569,1746175843400,-502.67311899,0.00019823,2]
[359597571,1746175843410,-450.0,0.00019823,2]
[359597573,1746175843420,-622.7,0.00019823,2]
[359597575,1746175843429,-697.9,0.00019823,2]
[359597577,1746175843439,-450.0,0.00019823,2]
[359597579,1746175843448,-450.0,0.00019823,2]
[359597581,1746175843458,-362.33982077,0.00019823,2]
[359597583,1746175843467,-450.0,0.00019823,2]
[359597585,1746175843477,-581.17319964,0.00019823,2]
[359597587,1746175843486,-505.94631352,0.00019823,2]
[359597589,1746175843495,-450.0,0.00019823,2]
[359597591,1746175843505,-450.0,0.00019823,2]
[359597593,1746175843514,-512.49471322,0.00019823,2]
[359597596,1746175843528,-500.0,0.00019823,2]
[359597598,1746175843538,-506.146085,0.00019823,2]
[359597600,1746175843548,-500.0,0.00019823,2]
[359597602,1746175843558,-500.0,0.00019823,2]
[359597604,1746175843568,-615.31,0.00019823,2]
[359597606,1746175843578,-492.65,0.00019823,2]
[359597608,1746175843588,-1247.22,0.00019823,2]
[359597610,1746175843597,-506.146085,0.00019823,2]
[359597612,1746175843607,-450.0,0.00019823,2]
[359597614,1746175843617,-541.35997611,0.00019823,2]
[359597616,1746175843627,-474.27963675,0.00019823,2]
[359597618,1746175843637,-524.8,0.00019823,2]
[359597620,1746175843647,-450.0,0.00019823,2]
[359597622,1746175843657,-450.0,0.00019823,2]
[359597625,1746175843667,-450.0,0.00019823,2]
[359597627,1746175843678,-450.0,0.00019823,2]
[359597629,1746175843688,-450.0,0.00019823,2]
[359597631,1746175843697,-450.0,0.00019823,2]
[359597633,1746175843707,-450.0,0.00019823,2]
[359597635,1746175843718,-450.0,0.00019823,2]
[359597637,1746175843727,-544.2093823,0.00019823,2]
[359597639,1746175843737,-899.06,0.00019823,2]
[359597641,1746175843747,-450.0,0.00019823,2]
[359597643,1746175843756,-1085.42,0.00019823,2]
[359597645,1746175843766,-591.88,0.00019823,2]
[359597647,1746175843776,-695.25,0.00019823,2]
[359597649,1746175843786,-547.68083013,0.00019823,2]
[359597651,1746175843795,-450.0,0.00019823,2]
[359597654,1746175843805,-450.0,0.00019823,2]
[359597656,1746175843816,-489.07,0.00019823,2]
[359597658,1746175843826,-1556.49,0.00019823,2]
[359597660,1746175843836,-450.0,0.00019823,2]
[359597662,1746175843846,-450.0,0.00019823,2]
[359597664,1746175843856,-450.0,0.00019823,2]
[359597666,1746175843865,-450.0,0.00019823,2]
[359597668,1746175843875,-1636.654076,0.00019823,2]
[359597670,1746175843885,-450.0,0.00019823,2]
[359597672,1746175843895,-1179.24,0.00019823,2]
[359597674,1746175843904,-450.0,0.00019823,2]
[359597676,1746175843914,-450.0,0.00019823,2]
[359597678,1746175843924,-450.0,0.00019823,2]
[359597680,1746175843934,-477.09067849,0.00019823,2]
[359597682,1746175843943,-450.0,0.00019823,2]
[359597684,1746175843953,-450.0,0.00019823,2]
[359597686,1746175843963,-1636.654076,0.00019823,2]
[359597688,1746175843974,-450.0,0.00019823,2]
[359597690,1746175843983,-450.0,0.00019823,2]
[359597692,1746175843994,-450.0,0.00019823,2]
[359597694,1746175844003,-450.0,0.00019823,2]
[359597696,1746175844014,-473.40854676,0.00019823,2]
[359597698,1746175844025,-450.0,0.00019823,2]
[359597700,1746175844035,-450.0,0.00019823,2]
[359597702,1746175844045,-450.0,0.00019823,2]
[359597704,1746175844054,-508.02,0.00019823,2]
[359597706,1746175844064,-450.0,0.00019823,2]
[359597708,1746175844075,-477.70853353,0.00019823,2]
[359597710,1746175844084,-450.0,0.00019823,2]
[359597712,1746175844094,-548.28,0.00019823,2]
[359597715,1746175844106,-548.28,0.00019823,2]
[359597717,1746175844116,-548.28,0.00019823,2]
[359597719,1746175844126,-450.0,0.00019823,2]
[359597721,1746175844136,-463.1,0.00019823,2]
[359597723,1746175844145,-476.57,0.00019823,2]
[359597725,1746175844155,-1177.79,0.00019823,2]
[359597727,1746175844165,-1074.03,0.00019823,2]
[359597729,1746175844174,-903.89,0.00019823,2]
[359597731,1746175844184,-450.0,0.00019823,2]
[359597733,1746175844194,-159.50744103,0.00019823,2]
[359597735,1746175844204,-904.14,0.00019823,2]
[359597737,1746175844213,-450.0,0.00019823,2]
[359597739,1746175844223,-450.0,0.00019823,2]
[359597741,1746175844233,-732.87,0.00019823,2]
[359597743,1746175844242,-450.0,0.00019823,2]
[359597745,1746175844252,-450.0,0.00019823,2]
[359597747,1746175844261,-534.35076385,0.00019823,2]
[359597749,1746175844271,-8455.48,0.00019823,2]
[359597752,1746175844281,-544.1092315,0.00019823,2]
[359597754,1746175844290,-450.0,0.00019823,2]
[359597756,1746175844299,-476.87129019,0.00019823,2]
[359597758,1746175844309,-151.0,0.00019823,2]
[359597760,1746175844319,-755.24,0.00019823,2]
[359597762,1746175844328,-450.0,0.00019823,2]
[359597764,1746175844337,-627.117266,0.00019823,2]
[359597766,1746175844347,-450.0,0.00019823,2]
[359597768,1746175844357,-168616.81,0.00019823,2]
[359597770,1746175844367,-627.117266,0.00019823,2]
[359597772,1746175844376,-535.070589,0.00019823,2]
[359597774,1746175844385,-450.0,0.00019823,2]
[359597776,1746175844395,-588.81,0.00019823,2]
[359597778,1746175844405,-535.070589,0.00019823,2]
[359597780,1746175844414,-725.82,0.00019823,2]
[359597782,1746175844423,-848.13,0.00019823,2]
[359597784,1746175844433,-848.13,0.00019823,2]
[359597786,1746175844442,-848.13,0.00019823,2]
[359597788,1746175844451,-8608.42,0.00019823,2]
[359597790,1746175844461,-555.35,0.00019823,2]
[359597792,1746175844470,-522.4896491,0.00019823,2]
[359597794,1746175844480,-470.4,0.00019823,2]
[359597796,1746175844490,-450.0,0.00019823,2]
[359597798,1746175844499,-41099.91,0.00019823,2]
[359597800,1746175844509,-450.0,0.00019823,2]
[359597802,1746175844518,-450.0,0.00019823,2]
[359597804,1746175844527,-2225.53,0.00019823,2]
[359597817,1746175844639,-686.08,0.00019823,2]
[359597819,1746175844649,-916.05,0.00019823,2]
[359597821,1746175844658,-450.0,0.00019823,2]
[359597823,1746175844667,-450.0,0.00019823,2]
[359597825,1746175844677,-450.0,0.00019823,2]
[359597827,1746175844686,-235.133997,0.00019823,2]
[359597829,1746175844695,-21764.49,0.00019823,2]
[359597831,1746175844704,-450.0,0.00019823,2]
[359597833,1746175844713,-450.0,0.00019823,2]
[359597835,1746175844724,-235.133997,0.00019823,2]
[359597837,1746175844733,-450.0,0.00019823,2]
[359597838,1746175844742,-500.0,0.00019823,2]
[359597839,1746175844751,-500.0,0.00019823,2]
[359597840,1746175844761,-450.0,0.00019823,2]
[359597841,1746175844770,-500.0,0.00019823,2]
[359597842,1746175844779,-450.0,0.00019823,2]
[359597843,1746175844788,-450.0,0.00019823,2]
[359597844,1746175844797,-496.78,0.00019823,2]
[359597845,1746175844806,-450.0,0.00019823,2]
[359597846,1746175844816,-450.0,0.00019823,2]
[359597847,1746175844825,-459.13,0.00019823,2]
[359597848,1746175844835,-151.0,0.00019823,2]
[359597849,1746175844844,-536.49,0.00019823,2]
[359597850,1746175844853,-156.41273,0.00019823,2]
[359597851,1746175844863,-450.0,0.00019823,2]
[359597852,1746175844872,-450.0,0.00019823,2]
[359597853,1746175844881,-348.294801,0.00019823,2]
[359597854,1746175844891,-1960.38,0.00019823,2]
[359597855,1746175844901,-450.0,0.00019823,2]
[359597856,1746175844910,-348.294801,0.00019823,2]
[359597858,1746175844919,-152.551244,0.00019823,2]
[359597860,1746175844928,-1024.37,0.00019823,2]
[359597862,1746175844937,-450.0,0.00019823,2]
[359597864,1746175844946,-450.0,0.00019823,2]
[359597866,1746175844956,-450.0,0.00019823,2]
[359597868,1746175844965,-487.09,0.00019823,2]
[359597870,1746175844974,-631.6,0.00019823,2]
[359597872,1746175844984,-564.76,0.00019823,2]
[359597874,1746175844993,-450.0,0.00019823,2]
[359597876,1746175845003,-450.0,0.00019823,2]
[359597878,1746175845012,-450.0,0.00019823,2]
[359597880,1746175845022,-569.3,0.00019823,2]
[359597882,1746175845037,-450.0,0.00019823,2]
[359597884,1746175845047,-450.0,0.00019823,2]
[359597886,1746175845056,-450.0,0.00019823,2]
[359597888,1746175845066,-517.93,0.00019823,2]
[359597890,1746175845077,-450.0,0.00019823,2]
[359597892,1746175845086,-450.0,0.00019823,2]
[359597894,1746175845095,-450.0,0.00019823,2]
[359597896,1746175845105,-450.0,0.00019823,2]